fUSD/lending_fUSD_20250603
["ID","MTS","AMOUNT","RATE_DAILY","PERIOD"]
[363887788,1748911842403,-375.44261579,0.0004,14]
[363887790,1748911842414,-456.92357066,0.0004,14]
[363887793,1748911842434,-611531.28723977,0.0004,14]
[363887795,1748911842446,-41929.25979094,0.0004,14]
[363887797,1748911842457,-2000.0,0.0004,2]
[363887799,1748911842467,-151.45216591,0.0004,2]
[363887801,1748911842476,-1000.0,0.0004,7]
[363887803,1748911842486,-20000.0,0.0004,2]
[363887805,1748911842495,-2110.0,0.0004,30]
[363887807,1748911842506,-17474.5484938,0.0004001,2]
[363887809,1748911842516,-20656.16068089,0.0004001,2]
[363887812,1748911842537,-519.750011,0.0004001,2]
[363887814,1748911842550,-1068.21900387,0.0004001,2]
[363887848,1748911842914,-850.0,0.00033706,2]
[363887850,1748911842924,-801.2689671,0.00036633,2]
[363887852,1748911842936,-167.33449572,0.00036633,2]
[363887854,1748911842945,-618.66408268,0.00036706,2]
[363887857,1748911842964,-231.33591732,0.00036706,2]
[363887858,1748911842973,-52530.05554894,0.0004001,2]
[363887860,1748911842983,-1338.3520141,0.0004001,2]
[363887863,1748911842992,-1254.4211942,0.0004001,2]
[363887866,1748911843002,-23080.7310921,0.0004001,2]
[363887869,1748911843012,-1452.9274069,0.0004001,2]
[363887872,1748911843023,-131992.0594035,0.0004001,2]
[363887875,1748911843033,-8439.0263863,0.0004001,2]
[363887878,1748911843042,-6888.0,0.00040037,30]
[363887880,1748911843052,-150.0,0.00040062,120]
[363887883,1748911843064,-150.0,0.00040068,120]
[363887886,1748911843073,-626.07,0.00040071,2]
[363887888,1748911843083,-1077.0,0.00040167,5]
[363887890,1748911843092,-504.98,0.000402,14]
[363887892,1748911843102,-11427.65,0.000402,14]
[363887894,1748911843113,-1000.0,0.000402,7]
[363887896,1748911843123,-201.0,0.0004022,2]
[363887898,1748911843133,-500.0,0.00040227,120]
[363887900,1748911843143,-150.0,0.00040227,2]
[363887902,1748911843152,-179.0,0.00040227,120]
[363887904,1748911843162,-4900.99997747,0.00040227,2]
[363887906,1748911843171,-1000.0,0.00040227,2]
[363887908,1748911843181,-499.999999,0.00040227,120]
[363887910,1748911843190,-1000.0,0.00040242,2]
[363887912,1748911843202,-150.0,0.0004027,120]
[363887914,1748911843212,-500.0,0.00040273,60]
[363887916,1748911843221,-1302.0,0.000403,30]
[363887918,1748911843231,-1593.42,0.000403,14]
[363887920,1748911843240,-163.09,0.0004037,2]
[363887923,1748911843251,-163.09,0.0004037,2]
[363887924,1748911843261,-163.09,0.0004037,2]
[363887926,1748911843271,-163.09,0.0004037,2]
[363887928,1748911843280,-163.09,0.0004037,2]
[363887930,1748911843289,-163.09,0.0004037,2]
[363887932,1748911843299,-162.85,0.0004037,2]
[363887934,1748911843308,-163.09,0.0004037,2]
[363887936,1748911843318,-162.64,0.0004037,2]
[363887938,1748911843327,-161.76065289,0.00040385,14]
[363887939,1748911843337,-150.0,0.00040429,120]
[363887941,1748911843347,-150.0,0.00040446,120]
[363887943,1748911843356,-204.0,0.00040482,10]
[363887945,1748911843366,-446.0,0.000405,30]
[363887947,1748911843376,-150.0,0.00040504,120]
[363887949,1748911843385,-349.81446514,0.00040511,2]
[363887951,1748911843395,-807.1,0.00040534,2]
[363887953,1748911843404,-150.0,0.00040547,2]
[363887955,1748911843414,-328.3965704,0.00040555,42]
[363887957,1748911843423,-150.0,0.00040569,120]
[363887959,1748911843433,-301.65,0.00040597,2]
[363887961,1748911843442,-1333.0,0.00040658,120]
[363887963,1748911843452,-150.0,0.00040659,120]
[363887965,1748911843462,-4013.0,0.000407,117]
[363887967,1748911843472,-1302.0,0.00040711,30]
[363887969,1748911843481,-150.0,0.00040712,120]
[363887971,1748911843490,-11427.65,0.000408,14]
[363887972,1748911843500,-1593.42,0.000409,14]
[363887974,1748911843513,-9500.25,0.00041,30]
[363887976,1748911843523,-2000.0,0.00041,120]
[363887978,1748911843532,-2276.0,0.00041,120]
[363887980,1748911843542,-151.728127,0.00041,14]
[363887982,1748911843553,-151.0,0.00041,14]
[363887984,1748911843562,-151.0,0.00041,14]
[363887986,1748911843572,-151.0,0.00041,14]
[363887988,1748911843582,-151.0,0.00041,14]
[363887990,1748911843592,-188.0,0.00041,90]
[363887992,1748911843601,-150.0,0.0004103,120]
[363887994,1748911843610,-393.27843,0.00041031,120]
[363887996,1748911843619,-152.192884,0.00041068,14]
[363887997,1748911843629,-1.53008412,0.00041068,14]
[363888000,1748911843644,-149.46991588,0.00041068,14]
[363888002,1748911843654,-207.759558,0.00041068,14]
[363888004,1748911843664,-204.51854476,0.00041068,14]
[363888009,1748911843687,-3.24101324,0.00041068,14]
[363888011,1748911843697,-471.218632,0.00041068,14]
[363888013,1748911843708,-471.218632,0.00041068,14]
[363888014,1748911843717,-151.0,0.00041068,14]
[363888015,1748911843726,-151.0,0.00041068,14]
[363888016,1748911843736,-151.0,0.00041068,14]
[363888017,1748911843746,-150.0,0.00041069,120]
[363888019,1748911843755,-228.68051401,0.00041085,7]
[363888021,1748911843765,-231.464321,0.00041095,14]
[363888023,1748911843775,-154.26655,0.00041095,14]
[363888024,1748911843785,-164.340431,0.00041095,14]
[363888025,1748911843794,-376.999018,0.00041095,6]
[363888026,1748911843804,-158.028063,0.00041095,6]
[363888027,1748911843813,-158.986599,0.00041095,6]
[363888028,1748911843823,-657.022927,0.00041095,6]
[363888029,1748911843832,-151.0,0.00041095,14]
[363888031,1748911843841,-151.0,0.00041095,14]
[363888032,1748911843851,-151.0,0.00041095,14]
[363888034,1748911843860,-151.0,0.00041095,14]
[363888036,1748911843870,-151.0,0.00041095,14]
[363888038,1748911843879,-151.0,0.00041095,14]
[363888040,1748911843889,-179.612853,0.00041095,14]
[363888042,1748911843898,-151.0,0.00041095,14]
[363888044,1748911843908,-151.0,0.00041095,14]
[363888046,1748911843918,-151.448086,0.00041095,6]
[363888048,1748911843927,-151.0,0.00041095,14]
[363888051,1748911843938,-150.576486,0.00041095,6]
[363888053,1748911843947,-151.0,0.00041095,14]
[363888055,1748911843958,-151.0,0.00041095,14]
[363888057,1748911843967,-151.0,0.00041095,14]
[363888059,1748911843976,-151.0,0.00041095,14]
[363888061,1748911843985,-151.0,0.00041095,14]
[363888063,1748911843995,-158.420715,0.00041095,6]
[363888065,1748911844004,-151.0,0.00041095,14]
[363888067,1748911844014,-151.0,0.00041095,14]
[363888069,1748911844024,-151.0,0.00041095,14]
[363888071,1748911844034,-186.65508,0.00041095,14]
[363888073,1748911844043,-151.0,0.00041095,14]
[363888075,1748911844052,-73.25808156,0.00041095,6]
[363888077,1748911844067,-348.48508902,0.00041095,6]
[363888079,1748911844076,-460.0,0.00041095,6]
[363888081,1748911844086,-460.0,0.00041095,6]
[363888083,1748911844095,-423.89118408,0.00041095,6]
[363888085,1748911844105,-420.0,0.00041095,6]
[363888087,1748911844115,-547.60612731,0.00041095,6]
[363888089,1748911844124,-460.0,0.00041095,6]
[363888091,1748911844133,-420.0,0.00041095,6]
[363888093,1748911844143,-460.0,0.00041095,6]
[363888095,1748911844153,-460.0,0.00041095,6]
[363888097,1748911844162,-460.0,0.00041095,6]
[363888099,1748911844172,-420.0,0.00041095,6]
[363888101,1748911844182,-460.0,0.00041095,6]
[363888103,1748911844192,-460.0,0.00041095,6]
[363888105,1748911844205,-460.0,0.00041095,6]
[363888107,1748911844215,-151.448087,0.00041095,6]
[363888109,1748911844224,-460.0,0.00041095,6]
[363888111,1748911844235,-500.24023475,0.00041095,6]
[363888113,1748911844244,-420.0,0.00041095,6]
[363888115,1748911844254,-460.0,0.00041095,6]
[363888117,1748911844263,-164.40450133,0.00041095,6]
[363888119,1748911844273,-460.0,0.00041095,6]
[363888121,1748911844282,-421.02345022,0.00041095,6]
[363888123,1748911844292,-460.0,0.00041095,6]
[363888125,1748911844302,-460.0,0.00041095,6]
[363888127,1748911844311,-427.30132632,0.00041095,6]
[363888130,1748911844326,-32.69867368,0.00041095,6]
[363888132,1748911844335,-354.96458971,0.00041095,6]
[363888134,1748911844345,-460.0,0.00041095,6]
[363888136,1748911844354,-460.0,0.00041095,6]
[363888138,1748911844364,-460.0,0.00041095,6]
[363888140,1748911844373,-460.0,0.00041095,6]
[363888148,1748911844445,-460.0,0.00041095,6]
[363888150,1748911844458,-460.0,0.00041095,6]
[363888152,1748911844468,-460.0,0.00041095,6]
[363888154,1748911844477,-460.0,0.00041095,6]
[363888155,1748911844486,-460.0,0.00041095,6]
[363888157,1748911844495,-460.0,0.00041095,6]
[363888159,1748911844506,-460.0,0.00041095,6]
[363888161,1748911844515,-460.0,0.00041095,6]
[363888163,1748911844525,-158.45810273,0.00041095,6]
[363888165,1748911844535,-460.0,0.00041095,6]
[363888167,1748911844544,-460.0,0.00041095,6]
[363888169,1748911844554,-395.08292435,0.00041095,6]
[363888171,1748911844564,-460.0,0.00041095,6]
[363888173,1748911844573,-460.0,0.00041095,6]
[363888175,1748911844585,-460.0,0.00041095,6]
[363888177,1748911844594,-422.8178642,0.00041095,6]
[363888179,1748911844604,-460.0,0.00041095,6]
[363888181,1748911844613,-460.0,0.00041095,6]
[363888182,1748911844622,-460.0,0.00041095,6]
[363888184,1748911844631,-158.420712,0.00041095,6]
[363888186,1748911844640,-460.0,0.00041095,6]
[363888188,1748911844649,-655.33,0.00041095,6]
[363888190,1748911844659,-422.59505436,0.00041095,6]
[363888192,1748911844668,-460.0,0.00041095,6]
[363888193,1748911844677,-460.0,0.00041095,6]
[363888195,1748911844686,-460.0,0.00041095,6]
[363888197,1748911844695,-460.0,0.00041095,6]
[363888199,1748911844705,-459.46770163,0.00041095,6]
[363888201,1748911844714,-460.0,0.00041095,6]
[363888203,1748911844723,-460.0,0.00041095,6]
[363888205,1748911844733,-460.0,0.00041095,6]
[363888207,1748911844743,-460.0,0.00041095,6]
[363888209,1748911844753,-681.54,0.00041095,5]
[363888211,1748911844762,-420.0,0.00041095,6]
[363888213,1748911844771,-460.0,0.00041095,6]
[363888215,1748911844781,-277.50338784,0.00041095,6]
[363888217,1748911844790,-36.7673895,0.00041095,6]
[363888219,1748911844806,-423.2326105,0.00041095,6]
[363888221,1748911844815,-460.0,0.00041095,6]
[363888223,1748911844824,-305.58215556,0.00041095,6]
[363888225,1748911844834,-460.0,0.00041095,6]
[363888227,1748911844843,-460.0,0.00041095,6]
[363888229,1748911844851,-91.18523394,0.00041095,6]
[363888231,1748911844863,-378.33476606,0.00041095,6]
[363888233,1748911844874,-343.97734224,0.00041095,6]
[363888235,1748911844883,-460.0,0.00041095,6]
[363888237,1748911844892,-460.0,0.00041095,6]
[363888239,1748911844901,-29.90040251,0.00041095,6]
[363888241,1748911844914,-430.09959749,0.00041095,6]
[363888243,1748911844924,-460.0,0.00041095,6]
[363888245,1748911844933,-500.0,0.00041095,6]
[363888247,1748911844943,-500.0,0.00041095,6]
[363888249,1748911844954,-500.0,0.00041095,6]
[363888251,1748911844964,-500.0,0.00041095,6]
[363888253,1748911844974,-500.0,0.00041095,6]
[363888255,1748911844983,-489.49149806,0.00041095,6]
[363888257,1748911844992,-460.0,0.00041095,6]
[363888259,1748911845002,-460.0,0.00041095,6]
[363888261,1748911845011,-454.72261973,0.00041095,6]
[363888262,1748911845020,-455.85160689,0.00041095,6]
[363888264,1748911845029,-460.0,0.00041095,6]
[363888266,1748911845038,-460.0,0.00041095,6]
[363888268,1748911845047,-460.0,0.00041095,6]
[363888270,1748911845056,-460.0,0.00041095,6]
[363888272,1748911845066,-460.0,0.00041095,6]
[363888274,1748911845075,-54.19640333,0.00041095,6]
[363888278,1748911845102,-405.80359667,0.00041095,6]
[363888280,1748911845111,-83.67646086,0.00041095,6]
[363888282,1748911845122,-301.57208656,0.00041095,6]
[363888284,1748911845131,-423.31406756,0.00041095,6]
[363888286,1748911845140,-1000.0,0.00041095,6]
[363888288,1748911845151,-460.0,0.00041095,6]
[363888289,1748911845160,-460.0,0.00041095,6]
[363888291,1748911845170,-460.0,0.00041095,6]
[363888293,1748911845179,-460.0,0.00041095,6]
[363888295,1748911845188,-460.0,0.00041095,6]
[363888297,1748911845197,-460.0,0.00041095,6]
[363888299,1748911845208,-460.0,0.00041095,6]
[363888301,1748911845217,-460.0,0.00041095,6]
[363888303,1748911845227,-460.0,0.00041095,6]
[363888305,1748911845236,-460.0,0.00041095,6]
[363888307,1748911845245,-369.19485257,0.00041095,6]
[363888309,1748911845254,-460.0,0.00041095,6]
[363888311,1748911845264,-460.0,0.00041095,6]
[363888313,1748911845273,-420.0,0.00041095,6]
[363888315,1748911845283,-420.0,0.00041095,6]
[363888317,1748911845292,-460.0,0.00041095,6]
[363888319,1748911845302,-460.0,0.00041095,6]
[363888321,1748911845310,-460.0,0.00041095,6]
[363888323,1748911845320,-420.0,0.00041095,6]
[363888325,1748911845329,-460.0,0.00041095,6]
[363888327,1748911845339,-341.68559193,0.00041095,6]
[363888329,1748911845348,-421.86348049,0.00041095,6]
[363888330,1748911845358,-460.0,0.00041095,6]
[363888332,1748911845368,-460.0,0.00041095,6]
[363888334,1748911845377,-460.0,0.00041095,6]
[363888336,1748911845388,-460.0,0.00041095,6]
[363888338,1748911845398,-502.51,0.00041095,6]
[363888340,1748911845408,-460.0,0.00041095,6]
[363888342,1748911845417,-237.52554272,0.00041095,6]
[363888344,1748911845427,-460.0,0.00041095,6]
[363888346,1748911845436,-460.0,0.00041095,6]
[363888348,1748911845445,-460.0,0.00041095,6]
[363888350,1748911845455,-285.71850043,0.00041095,6]
[363888354,1748911845478,-174.28149957,0.00041095,6]
[363888356,1748911845487,-460.0,0.00041095,6]
[363888357,1748911845496,-460.0,0.00041095,6]
[363888359,1748911845507,-460.0,0.00041095,6]
[363888362,1748911845520,-460.0,0.00041095,6]
[363888364,1748911845530,-397.37604766,0.00041095,6]
[363888366,1748911845539,-635.04,0.00041095,6]
[363888368,1748911845550,-460.0,0.00041095,6]
[363888370,1748911845560,-460.0,0.00041095,6]
[363888372,1748911845570,-460.0,0.00041095,6]
[363888374,1748911845579,-734.83,0.00041095,6]
[363888376,1748911845589,-761.28,0.00041095,6]
[363888378,1748911845600,-460.0,0.00041095,6]
[363888380,1748911845609,-460.0,0.00041095,6]
[363888382,1748911845618,-460.0,0.00041095,6]
[363888383,1748911845628,-460.0,0.00041095,6]
[363888385,1748911845637,-599.26,0.00041095,6]
[363888387,1748911845646,-460.0,0.00041095,6]
[363888389,1748911845655,-343.11256773,0.00041095,6]
[363888392,1748911845665,-460.0,0.00041095,6]
[363888393,1748911845675,-460.0,0.00041095,6]
[363888395,1748911845685,-460.0,0.00041095,6]
[363888397,1748911845694,-460.0,0.00041095,6]
[363888399,1748911845705,-460.0,0.00041095,6]
[363888401,1748911845714,-460.0,0.00041095,6]
[363888403,1748911845723,-460.0,0.00041095,6]
[363888405,1748911845732,-486.81,0.00041095,6]
[363888407,1748911845741,-460.0,0.00041095,6]
[363888409,1748911845751,-460.0,0.00041095,6]
[363888411,1748911845760,-353.16284451,0.00041095,6]
[363888412,1748911845769,-460.0,0.00041095,6]
[363888414,1748911845778,-654.81,0.00041095,6]
[363888416,1748911845788,-460.0,0.00041095,6]
[363888419,1748911845798,-460.0,0.00041095,6]
[363888420,1748911845808,-463.07,0.00041095,6]
[363888422,1748911845817,-460.0,0.00041095,6]
[363888424,1748911845827,-157.264056,0.00041095,14]
[363888426,1748911845837,-460.0,0.00041095,6]
[363888428,1748911845847,-460.0,0.00041095,6]
[363888430,1748911845857,-460.0,0.00041095,6]
[363888432,1748911845866,-460.0,0.00041095,6]
[363888434,1748911845875,-460.0,0.00041095,6]
[363888436,1748911845885,-348.14530484,0.00041095,6]
[363888438,1748911845894,-460.0,0.00041095,6]
[363888440,1748911845903,-460.0,0.00041095,6]
[363888442,1748911845913,-460.0,0.00041095,6]
[363888444,1748911845922,-460.0,0.00041095,6]
[363888446,1748911845931,-460.0,0.00041095,6]
[363888448,1748911845941,-460.0,0.00041095,6]
[363888450,1748911845952,-460.0,0.00041095,6]
[363888452,1748911845961,-1000.0,0.00041095,30]
[363888454,1748911845971,-420.0,0.00041095,6]
[363888456,1748911845980,-460.0,0.00041095,6]
[363888458,1748911845990,-498.7,0.00041095,6]
[363888460,1748911845999,-524.17,0.00041095,6]
[363888462,1748911846009,-460.0,0.00041095,6]
[363888464,1748911846018,-642.15,0.00041095,6]
[363888466,1748911846027,-460.0,0.00041095,6]
[363888468,1748911846037,-460.0,0.00041095,6]
[363888470,1748911846046,-460.0,0.00041095,6]
[363888472,1748911846055,-460.0,0.00041095,6]
[363888474,1748911846065,-460.0,0.00041095,6]
[363888476,1748911846075,-460.0,0.00041095,6]
[363888478,1748911846084,-460.0,0.00041095,6]
[363888480,1748911846093,-460.0,0.00041095,6]
[363888482,1748911846102,-460.0,0.00041095,6]
[363888485,1748911846111,-530.31304696,0.00041095,6]
[363888488,1748911846123,-460.0,0.00041095,6]
[363888490,1748911846132,-516.38,0.00041095,6]
[363888492,1748911846141,-460.0,0.00041095,6]
[363888494,1748911846151,-460.0,0.00041095,6]
[363888496,1748911846160,-460.0,0.00041095,6]
[363888498,1748911846169,-460.0,0.00041095,6]
[363888500,1748911846179,-460.0,0.00041095,6]
[363888502,1748911846188,-460.0,0.00041095,6]
[363888504,1748911846197,-460.0,0.00041095,6]
[363888506,1748911846208,-460.0,0.00041095,6]
[363888508,1748911846217,-460.0,0.00041095,6]
[363888510,1748911846225,-460.0,0.00041095,6]
[363888512,1748911846235,-460.0,0.00041095,6]
[363888514,1748911846245,-460.0,0.00041095,6]
[363888516,1748911846254,-460.0,0.00041095,6]
[363888518,1748911846263,-460.0,0.00041095,6]
[363888520,1748911846273,-460.0,0.00041095,6]
[363888522,1748911846282,-151.0,0.00041095,14]
[363888524,1748911846291,-151.0,0.00041095,14]
[363888526,1748911846301,-511.53,0.00041095,6]
[363888528,1748911846310,-460.0,0.00041095,6]
[363888530,1748911846320,-460.0,0.00041095,6]
[363888531,1748911846330,-460.0,0.00041095,6]
[363888533,1748911846341,-151.0,0.00041095,14]
[363888535,1748911846351,-460.0,0.00041095,6]
[363888537,1748911846362,-460.0,0.00041095,6]
[363888539,1748911846371,-460.0,0.00041095,6]
[363888541,1748911846381,-460.0,0.00041095,6]
[363888543,1748911846391,-208.65559606,0.00041095,6]
[363888544,1748911846400,-460.0,0.00041095,6]
[363888545,1748911846408,-460.0,0.00041095,6]
[363888546,1748911846417,-528.72,0.00041095,6]
[363888547,1748911846426,-460.0,0.00041095,6]
[363888548,1748911846435,-460.0,0.00041095,6]
[363888549,1748911846444,-538.53,0.00041095,6]
[363888550,1748911846453,-460.0,0.00041095,6]
[363888551,1748911846462,-568.06,0.00041095,6]
[363888552,1748911846472,-460.0,0.00041095,6]
[363888553,1748911846481,-460.0,0.00041095,6]
[363888554,1748911846490,-620.84,0.00041095,6]
[363888555,1748911846499,-151.0,0.00041095,14]
[363888556,1748911846512,-420.0,0.00041095,6]
[363888557,1748911846522,-460.0,0.00041095,6]
[363888559,1748911846531,-460.0,0.00041095,6]
[363888561,1748911846540,-346.04577368,0.00041095,6]
[363888563,1748911846550,-163.19666269,0.00041095,6]
[363888565,1748911846560,-151.0,0.00041095,14]
[363888567,1748911846569,-460.0,0.00041095,6]
[363888569,1748911846580,-460.0,0.00041095,6]
[363888571,1748911846591,-756.83,0.00041095,6]
[363888573,1748911846600,-460.0,0.00041095,6]
[363888575,1748911846610,-460.0,0.00041095,6]
[363888577,1748911846619,-592.56,0.00041095,6]
[363888579,1748911846629,-654.71,0.00041095,6]
[363888581,1748911846638,-460.0,0.00041095,6]
[363888583,1748911846647,-460.0,0.00041095,6]
[363888585,1748911846657,-460.0,0.00041095,6]
[363888587,1748911846666,-460.0,0.00041095,6]
[363888589,1748911846675,-202.92,0.00041095,6]
[363888591,1748911846685,-460.0,0.00041095,6]
[363888593,1748911846694,-460.0,0.00041095,6]
[363888595,1748911846703,-151.0,0.00041095,14]
[363888597,1748911846713,-460.0,0.00041095,6]
[363888599,1748911846722,-391.81116161,0.00041095,6]
[363888601,1748911846732,-460.0,0.00041095,6]
[363888603,1748911846742,-207.759558,0.00041095,14]
[363888605,1748911846751,-460.0,0.00041095,6]
[363888607,1748911846760,-460.0,0.00041095,6]
[363888609,1748911846769,-460.0,0.00041095,6]
[363888611,1748911846778,-460.0,0.00041095,6]
[363888613,1748911846788,-460.0,0.00041095,6]
[363888615,1748911846797,-207.759558,0.00041095,14]
[363888617,1748911846806,-426.84992817,0.00041095,2]
[363888619,1748911846816,-460.0,0.00041095,6]
[363888621,1748911846825,-460.0,0.00041095,6]
[363888623,1748911846835,-460.0,0.00041095,2]
[363888625,1748911846844,-460.0,0.00041095,6]
[363888627,1748911846853,-460.0,0.00041095,6]
[363888628,1748911846863,-460.0,0.00041095,6]
[363888630,1748911846872,-460.0,0.00041095,6]
[363888632,1748911846882,-540.84,0.00041095,6]
[363888635,1748911846892,-460.0,0.00041095,2]
[363888636,1748911846901,-491.67,0.00041095,6]
[363888638,1748911846910,-7221.40692919,0.00041095,30]
[363888640,1748911846920,-420.0,0.00041095,6]
[363888642,1748911846930,-460.0,0.00041095,6]
[363888645,1748911846939,-460.0,0.00041095,6]
[363888647,1748911846949,-460.0,0.00041095,2]
[363888649,1748911846960,-460.0,0.00041095,6]
[363888651,1748911846969,-460.0,0.00041095,2]
[363888652,1748911846979,-460.0,0.00041095,6]
[363888655,1748911846989,-460.0,0.00041095,6]
[363888657,1748911846999,-460.0,0.00041095,6]
[363888659,1748911847008,-460.0,0.00041095,6]
[363888661,1748911847018,-460.0,0.00041095,6]
[363888663,1748911847027,-460.0,0.00041095,6]
[363888664,1748911847037,-460.0,0.00041095,2]
[363888666,1748911847046,-460.0,0.00041095,6]
[363888668,1748911847055,-460.0,0.00041095,6]
[363888670,1748911847064,-460.0,0.00041095,6]
[363888672,1748911847074,-460.0,0.00041095,6]
[363888674,1748911847084,-420.0,0.00041095,6]
[363888676,1748911847093,-460.0,0.00041095,6]
[363888678,1748911847103,-460.0,0.00041095,6]
[363888680,1748911847113,-460.0,0.00041095,6]
[363888682,1748911847123,-437.38262739,0.00041095,6]
[363888684,1748911847133,-602.18,0.00041095,6]
[363888686,1748911847143,-460.0,0.00041095,6]
[363888688,1748911847152,-151.0,0.00041095,14]
[363888690,1748911847162,-460.0,0.00041095,6]
[363888692,1748911847172,-228.61607342,0.00041095,6]
[363888694,1748911847181,-460.0,0.00041095,6]
[363888696,1748911847191,-460.0,0.00041095,6]
[363888698,1748911847200,-868.75,0.00041095,6]
[363888700,1748911847214,-868.75,0.00041095,6]
[363888702,1748911847223,-868.75,0.00041095,6]
[363888704,1748911847233,-460.0,0.00041095,6]
[363888706,1748911847242,-460.0,0.00041095,6]
[363888708,1748911847254,-868.75,0.00041095,6]
[363888710,1748911847263,-868.75,0.00041095,6]
[363888712,1748911847272,-747.48574017,0.00041095,6]
[363888777,1748911848020,-304.66,0.00022545,2]
[363888778,1748911848031,-145.52499999,0.00038998,5]
[363888779,1748911848043,-154.47500001,0.00038998,5]
[363888781,1748911848053,-121.26425983,0.00041095,6]
[363888783,1748911848064,-414.45060521,0.00041095,6]
[363888785,1748911848076,-454.29939479,0.00041095,6]
[363888787,1748911848086,-868.75,0.00041095,6]
[363888789,1748911848096,-151.0,0.00041095,14]
[363888791,1748911848106,-432.78483094,0.00041095,6]
[363888793,1748911848116,-868.75,0.00041095,6]
[363888794,1748911848127,-460.0,0.00041095,6]
[363888795,1748911848136,-294.14458553,0.00041095,6]
[363888796,1748911848149,-444.33,0.00041095,6]
[363888797,1748911848162,-130.27541447,0.00041095,6]
[363888798,1748911848172,-868.75,0.00041095,6]
[363888799,1748911848182,-868.75,0.00041095,6]
[363888800,1748911848192,-868.75,0.00041095,6]
[363888801,1748911848204,-460.0,0.00041095,6]
[363888802,1748911848215,-868.75,0.00041095,6]
[363888803,1748911848225,-868.75,0.00041095,6]
[363888804,1748911848235,-868.75,0.00041095,6]
[363888805,1748911848245,-868.75,0.00041095,6]
[363888806,1748911848255,-868.75,0.00041095,6]
[363888807,1748911848266,-868.75,0.00041095,6]
[363888808,1748911848276,-868.75,0.00041095,6]
[363888809,1748911848286,-868.75,0.00041095,6]
[363888810,1748911848296,-868.75,0.00041095,6]
[363888811,1748911848306,-460.0,0.00041095,6]
[363888812,1748911848318,-868.75,0.00041095,6]
[363888813,1748911848328,-460.0,0.00041095,6]
[363888814,1748911848338,-460.0,0.00041095,6]
[363888815,1748911848349,-868.79197971,0.00041095,6]
[363888816,1748911848360,-471.218632,0.00041095,14]
[363888817,1748911848370,-460.0,0.00041095,6]
[363888818,1748911848380,-460.0,0.00041095,6]
[363888819,1748911848391,-460.0,0.00041095,6]
[363888820,1748911848402,-460.0,0.00041095,6]
[363888821,1748911848413,-460.0,0.00041095,6]
[363888822,1748911848424,-460.0,0.00041095,6]
[363888823,1748911848434,-460.0,0.00041095,6]
[363888824,1748911848444,-460.0,0.00041095,6]
[363888825,1748911848454,-460.0,0.00041095,6]
[363888826,1748911848466,-471.218632,0.00041095,14]
[363888827,1748911848476,-463.04,0.00041095,6]
[363888828,1748911848487,-460.0,0.00041095,6]
[363888829,1748911848497,-460.0,0.00041095,6]
[363888830,1748911848509,-460.0,0.00041095,6]
[363888831,1748911848519,-460.0,0.00041095,6]